[Event "Late-Titled-Tuesday-Blitz-July-09-2024"]
[Site "Chess.com"]
[Date "2024.07.09"]
[Round "3"]
[White "i_like_explosions"]
[Black "ChessBrainiacOnTwitch"]
[Result "0-1"]
[WhiteElo "2532"]
[BlackElo "2822"]
[TimeControl "180+1"]
[EndTime "14:30:07 PDT"]
[Termination "ChessBrainiacOnTwitch won by resignation"]

1. d4 {[%clk 0:03:00.9]} 1... Nf6 {[%clk 0:02:52.5]} 2. Bg5 {[%clk 0:03:00.3]}
2... Ne4 {[%clk 0:02:50.2]} 3. Bf4 {[%clk 0:03:00.2]} 3... g6 {[%clk 0:02:48]}
4. f3 {[%clk 0:02:59.4]} 4... Nf6 {[%clk 0:02:48.1]} 5. e4 {[%clk 0:02:59.9]}
5... d5 {[%clk 0:02:47.8]} 6. e5 {[%clk 0:02:59]} 6... Nfd7 {[%clk 0:02:48.4]}
7. Qd2 {[%clk 0:02:54.6]} 7... Bg7 {[%clk 0:02:43.1]} 8. h4 {[%clk 0:02:50.4]}
8... h5 {[%clk 0:02:42.9]} 9. Nh3 {[%clk 0:02:50.1]} 9... Nb6 {[%clk 0:02:37.6]}
10. c3 {[%clk 0:02:45.9]} 10... Bf5 {[%clk 0:02:37.2]} 11. Bd3 {[%clk
0:02:44.1]} 11... Bxd3 {[%clk 0:02:35.7]} 12. Qxd3 {[%clk 0:02:45]} 12... e6
{[%clk 0:02:33.6]} 13. Bg5 {[%clk 0:02:36.6]} 13... Qd7 {[%clk 0:02:31.7]} 14.
Nd2 {[%clk 0:02:35.7]} 14... Nc6 {[%clk 0:02:25.2]} 15. O-O {[%clk 0:02:34.4]}
15... Ne7 {[%clk 0:02:25]} 16. b3 {[%clk 0:02:26.3]} 16... Nf5 {[%clk
0:02:25.1]} 17. a4 {[%clk 0:02:25.6]} 17... a5 {[%clk 0:02:22.9]} 18. Rfc1
{[%clk 0:02:20.7]} 18... O-O {[%clk 0:02:21.9]} 19. Nf1 {[%clk 0:02:20.2]} 19...
Rac8 {[%clk 0:02:17]} 20. Ne3 {[%clk 0:02:19.6]} 20... Ne7 {[%clk 0:02:04.6]}
21. g4 {[%clk 0:01:52]} 21... f6 {[%clk 0:01:35.5]} 22. exf6 {[%clk 0:01:18.5]}
22... Bxf6 {[%clk 0:01:36.4]} 23. Bh6 {[%clk 0:01:04.5]} 23... Rf7 {[%clk
0:01:33.9]} 24. Ng2 {[%clk 0:01:02]} 24... hxg4 {[%clk 0:01:31.5]} 25. fxg4
{[%clk 0:01:01.9]} 25... e5 {[%clk 0:01:30]} 26. dxe5 {[%clk 0:01:00.7]} 26...
Bxe5 {[%clk 0:01:28.3]} 27. Qe2 {[%clk 0:00:59]} 27... Nc6 {[%clk 0:01:23.7]}
28. Ng5 {[%clk 0:00:56.7]} 28... Re7 {[%clk 0:01:23]} 29. Qd3 {[%clk 0:00:52.8]}
29... Qd6 {[%clk 0:01:13.9]} 30. Rf1 {[%clk 0:00:52.3]} 30... Bg7 {[%clk
0:01:08.6]} 31. Bxg7 {[%clk 0:00:49.7]} 31... Rxg7 {[%clk 0:01:09]} 32. Rae1
{[%clk 0:00:48.8]} 32... Ne5 {[%clk 0:01:05.4]} 33. Qg3 {[%clk 0:00:37.1]} 33...
Nbd7 {[%clk 0:01:03.1]} 34. Re3 {[%clk 0:00:31.3]} 34... d4 {[%clk 0:00:59.8]}
35. cxd4 {[%clk 0:00:29.5]} 35... Qxd4 {[%clk 0:01:00.7]} 36. Rf4 {[%clk
0:00:28.5]} 36... Qd6 {[%clk 0:00:49.1]} 37. Kh2 {[%clk 0:00:27.7]} 37... Re7
{[%clk 0:00:39.9]} 38. Rfe4 {[%clk 0:00:24.5]} 38... Rf8 {[%clk 0:00:36.2]} 39.
Kh3 {[%clk 0:00:22]} 39... Qf6 {[%clk 0:00:18.7]} 40. Rf4 {[%clk 0:00:20.5]}
40... Qd6 {[%clk 0:00:15.7]} 41. Rxf8+ {[%clk 0:00:20.9]} 41... Kxf8 {[%clk
0:00:14]} 42. Re4 {[%clk 0:00:20.6]} 42... Kg8 {[%clk 0:00:14.1]} 43. Rf4 {[%clk
0:00:20.7]} 43... Qd1 {[%clk 0:00:13.2]} 44. Kh2 {[%clk 0:00:15.5]} 44... Qd6
{[%clk 0:00:13.5]} 45. Ne4 {[%clk 0:00:12.4]} 45... Qe6 {[%clk 0:00:11.5]} 46.
Ng5 {[%clk 0:00:11.2]} 46... Qd5 {[%clk 0:00:09.6]} 47. Qf2 {[%clk 0:00:07.1]}
47... Re8 {[%clk 0:00:10.1]} 48. Rd4 {[%clk 0:00:06.5]} 48... Qc5 {[%clk
0:00:06.2]} 49. Kg3 {[%clk 0:00:04.6]} 49... Qe7 {[%clk 0:00:06.2]} 50. Qe3
{[%clk 0:00:04.8]} 50... Nf6 {[%clk 0:00:05.3]} 51. Rf4 {[%clk 0:00:04.3]} 51...
Nd5 {[%clk 0:00:04.8]} 52. Qe4 {[%clk 0:00:03.3]} 52... Nxf4 {[%clk 0:00:05.4]}
53. Qxf4 {[%clk 0:00:03.8]} 53... Rf8 {[%clk 0:00:03.5]} 54. Qe4 {[%clk
0:00:04]} 54... Qd6 {[%clk 0:00:04.1]} 55. Kh3 {[%clk 0:00:03.9]} 55... Qd3+
{[%clk 0:00:04.2]} 56. Qxd3 {[%clk 0:00:03.9]} 56... Nxd3 {[%clk 0:00:05.1]} 57.
Ne3 {[%clk 0:00:04.3]} 57... Nf2+ {[%clk 0:00:05]} 58. Kg3 {[%clk 0:00:04.3]}
58... Nd3 {[%clk 0:00:04.9]} 59. Nd5 {[%clk 0:00:04.5]} 59... c6 {[%clk
0:00:03.9]} 60. Ne7+ {[%clk 0:00:05.1]} 60... Kg7 {[%clk 0:00:02]} 61. h5 {[%clk
0:00:05.6]} 61... Kf6 {[%clk 0:00:01.7]} 62. Nxg6 {[%clk 0:00:03.1]} 62... Rg8
{[%clk 0:00:02.3]} 63. Nh7+ {[%clk 0:00:03.4]} 63... Kg7 {[%clk 0:00:02.6]} 64.
Ng5 {[%clk 0:00:04]} 64... Kf6 {[%clk 0:00:02.6]} 65. Kh4 {[%clk 0:00:04.7]}
65... Ne5 {[%clk 0:00:02.5]} 66. Ne4+ {[%clk 0:00:05.3]} 66... Ke6 {[%clk
0:00:02.5]} 67. Ng5+ {[%clk 0:00:04.8]} 67... Kf6 {[%clk 0:00:02.7]} 68. Ne4+
{[%clk 0:00:05.1]} 68... Kg7 {[%clk 0:00:02.8]} 69. Ng5 {[%clk 0:00:05.5]} 69...
Ra8 {[%clk 0:00:01.2]} 70. Ne6+ {[%clk 0:00:06]} 70... Kf6 {[%clk 0:00:02]} 71.
Nef4 {[%clk 0:00:06.7]} 71... Nf3+ {[%clk 0:00:02.4]} 72. Kg3 {[%clk 0:00:06.7]}
72... Ng5 {[%clk 0:00:03.3]} 73. Ne2 {[%clk 0:00:05.4]} 73... Re8 {[%clk
0:00:02.6]} 74. Nef4 {[%clk 0:00:04.8]} 74... Re3+ {[%clk 0:00:03]} 75. Kh4
{[%clk 0:00:04.8]} 75... Rxb3 {[%clk 0:00:03.1]} 76. Nf8 {[%clk 0:00:04.9]}
76... Nf3+ {[%clk 0:00:03.2]} 77. Kg3 {[%clk 0:00:04.8]} 77... Ng5+ {[%clk
0:00:03.8]} 78. Kh4 {[%clk 0:00:05.3]} 78... Nf3+ {[%clk 0:00:04.3]} 79. Kg3
{[%clk 0:00:05.4]} 79... Ne5+ {[%clk 0:00:05.2]} 80. Kh4 {[%clk 0:00:05.7]}
80... Kf7 {[%clk 0:00:05.6]} 81. N8g6 {[%clk 0:00:05.1]} 81... Nf3+ {[%clk
0:00:05.8]} 82. Kg3 {[%clk 0:00:04.9]} 82... Kg7 {[%clk 0:00:06.4]} 83. Kg2
{[%clk 0:00:03.8]} 83... Kh6 {[%clk 0:00:06.3]} 84. Ne6 {[%clk 0:00:03.1]} 84...
Ng5 {[%clk 0:00:05.5]} 85. Ne7 {[%clk 0:00:03.2]} 85... Nxe6 {[%clk 0:00:05.4]}
86. Nf5+ {[%clk 0:00:03.5]} 86... Kg5 {[%clk 0:00:06]} 0-1

[Event "Late-Titled-Tuesday-Blitz-July-09-2024"]
[Site "Chess.com"]
[Date "2024.07.09"]
[Round "3"]
[White "Lady_Nika"]
[Black "BardArtem"]
[Result "1/2-1/2"]
[WhiteElo "2500"]
[BlackElo "2809"]
[TimeControl "180+1"]
[EndTime "14:30:08 PDT"]
[Termination "Game drawn by repetition"]

1. e4 {[%clk 0:03:00.9]} 1... e5 {[%clk 0:03:00]} 2. Nf3 {[%clk 0:03:00.6]} 2...
Nc6 {[%clk 0:03:00.7]} 3. Bb5 {[%clk 0:03:00.3]} 3... Nge7 {[%clk 0:03:01.1]} 4.
O-O {[%clk 0:02:58.6]} 4... Ng6 {[%clk 0:03:00.5]} 5. c3 {[%clk 0:02:58.3]} 5...
d5 {[%clk 0:03:00.8]} 6. exd5 {[%clk 0:02:54.7]} 6... Qxd5 {[%clk 0:03:01.7]} 7.
c4 {[%clk 0:02:54.9]} 7... Qd3 {[%clk 0:03:01.3]} 8. Nc3 {[%clk 0:02:53.7]} 8...
Bg4 {[%clk 0:02:59.9]} 9. Re1 {[%clk 0:02:44.8]} 9... Bxf3 {[%clk 0:02:52.5]}
10. Qxf3 {[%clk 0:02:42.9]} 10... Qxf3 {[%clk 0:02:52.9]} 11. gxf3 {[%clk
0:02:43.8]} 11... O-O-O {[%clk 0:02:53.7]} 12. Bxc6 {[%clk 0:02:41.7]} 12...
bxc6 {[%clk 0:02:54.6]} 13. Na4 {[%clk 0:02:36.9]} 13... Bb4 {[%clk 0:02:45.1]}
14. Nc3 {[%clk 0:02:29.3]} 14... Rd3 {[%clk 0:02:40]} 15. Re3 {[%clk 0:02:20.9]}
15... Rhd8 {[%clk 0:02:34.6]} 16. Kf1 {[%clk 0:02:14.8]} 16... f6 {[%clk
0:02:21.8]} 17. a3 {[%clk 0:02:10.7]} 17... Bc5 {[%clk 0:02:19.2]} 18. b4 {[%clk
0:01:23.4]} 18... Bxe3 {[%clk 0:02:11.5]} 19. fxe3 {[%clk 0:01:23.1]} 19... f5
{[%clk 0:02:04.4]} 20. Ke2 {[%clk 0:01:21.2]} 20... f4 {[%clk 0:02:01.2]} 21.
Nd5 {[%clk 0:01:03]} 21... cxd5 {[%clk 0:01:39.8]} 22. Kxd3 {[%clk 0:01:01.9]}
22... dxc4+ {[%clk 0:01:40.7]} 23. Kxc4 {[%clk 0:01:01.9]} 23... e4 {[%clk
0:01:41.4]} 24. exf4 {[%clk 0:00:41.5]} 24... exf3 {[%clk 0:01:39.5]} 25. d4
{[%clk 0:00:41.5]} 25... Re8 {[%clk 0:01:34]} 26. f5 {[%clk 0:00:40.5]} 26...
Nh4 {[%clk 0:01:20.7]} 27. Bg5 {[%clk 0:00:34.4]} 27... Nxf5 {[%clk 0:01:20.1]}
28. Rf1 {[%clk 0:00:34.4]} 28... h6 {[%clk 0:01:16.9]} 29. Bc1 {[%clk
0:00:29.3]} 29... Nh4 {[%clk 0:01:14.3]} 30. Bf4 {[%clk 0:00:22.6]} 30... Ng2
{[%clk 0:01:03.7]} 31. Bc1 {[%clk 0:00:08]} 31... Re1 {[%clk 0:01:03.8]} 32.
Rxe1 {[%clk 0:00:05.6]} 32... Nxe1 {[%clk 0:01:04.7]} 33. Be3 {[%clk 0:00:06]}
33... Nc2 {[%clk 0:01:05.4]} 34. Bf2 {[%clk 0:00:06.2]} 34... Nxa3+ {[%clk
0:01:06.2]} 35. Kd3 {[%clk 0:00:06]} 35... g5 {[%clk 0:01:04.5]} 36. Ke4 {[%clk
0:00:06.3]} 36... g4 {[%clk 0:01:04.9]} 37. Kf4 {[%clk 0:00:06.7]} 37... h5
{[%clk 0:00:39.3]} 38. Kg5 {[%clk 0:00:06.3]} 38... Nc2 {[%clk 0:00:40]} 39.
Kxh5 {[%clk 0:00:06.6]} 39... Nxb4 {[%clk 0:00:40.7]} 40. Kxg4 {[%clk
0:00:06.6]} 40... a5 {[%clk 0:00:41.5]} 41. Kxf3 {[%clk 0:00:06.3]} 41... a4
{[%clk 0:00:41.9]} 42. d5 {[%clk 0:00:06]} 42... a3 {[%clk 0:00:32]} 43. Bd4
{[%clk 0:00:04.7]} 43... Kd7 {[%clk 0:00:28.1]} 44. h4 {[%clk 0:00:04.6]} 44...
Ke7 {[%clk 0:00:27.1]} 45. h5 {[%clk 0:00:04.5]} 45... Kf7 {[%clk 0:00:26.7]}
46. h6 {[%clk 0:00:04.8]} 46... Kg6 {[%clk 0:00:26.6]} 47. Bg7 {[%clk 0:00:04]}
47... Nxd5 {[%clk 0:00:16.4]} 48. Ke4 {[%clk 0:00:04.1]} 48... Nb4 {[%clk
0:00:14.8]} 49. Ke3 {[%clk 0:00:01.5]} 49... c6 {[%clk 0:00:06.4]} 50. Kd2
{[%clk 0:00:02.4]} 50... a2 {[%clk 0:00:03.4]} 51. Kc1 {[%clk 0:00:02.5]} 51...
c5 {[%clk 0:00:03.4]} 52. Kd2 {[%clk 0:00:02.8]} 52... Kh7 {[%clk 0:00:02.3]}
53. Kc1 {[%clk 0:00:03.2]} 53... c4 {[%clk 0:00:02.5]} 54. Kd2 {[%clk
0:00:03.7]} 54... Nd5 {[%clk 0:00:03.2]} 55. Kc1 {[%clk 0:00:02.5]} 55... c3
{[%clk 0:00:03.7]} 56. Bxc3 {[%clk 0:00:03]} 56... Nxc3 {[%clk 0:00:04.6]} 57.
Kb2 {[%clk 0:00:03.6]} 57... Kxh6 {[%clk 0:00:05.4]} 58. Ka1 {[%clk 0:00:04]}
58... Kg6 {[%clk 0:00:06.2]} 59. Kb2 {[%clk 0:00:04.9]} 59... Kf5 {[%clk
0:00:07.1]} 60. Ka1 {[%clk 0:00:05.8]} 60... Ke4 {[%clk 0:00:08]} 61. Kb2 {[%clk
0:00:06.5]} 61... Kd4 {[%clk 0:00:08.9]} 62. Ka1 {[%clk 0:00:07.2]} 62... Kc4
{[%clk 0:00:09.8]} 63. Kb2 {[%clk 0:00:08]} 63... Kb4 {[%clk 0:00:10.7]} 64. Ka1
{[%clk 0:00:08.8]} 64... Kc4 {[%clk 0:00:11.6]} 65. Kb2 {[%clk 0:00:09.4]} 65...
Kd3 {[%clk 0:00:12.5]} 66. Ka1 {[%clk 0:00:10]} 66... Kd2 {[%clk 0:00:13.4]} 67.
Kb2 {[%clk 0:00:10.6]} 67... Ke3 {[%clk 0:00:11.3]} 68. Ka1 {[%clk 0:00:11.2]}
68... Kf4 {[%clk 0:00:12.2]} 69. Kb2 {[%clk 0:00:11.8]} 69... Kg5 {[%clk
0:00:13.1]} 70. Ka1 {[%clk 0:00:12.7]} 70... Kh6 {[%clk 0:00:14]} 71. Kb2 {[%clk
0:00:13.6]} 71... Kg7 {[%clk 0:00:14.9]} 72. Ka1 {[%clk 0:00:14.5]} 72... Kh8
{[%clk 0:00:15.8]} 73. Kb2 {[%clk 0:00:15.4]} 73... Kg8 {[%clk 0:00:16.7]} 74.
Ka1 {[%clk 0:00:16.3]} 74... Kf8 {[%clk 0:00:17.6]} 75. Kb2 {[%clk 0:00:17.2]}
75... Ke8 {[%clk 0:00:18.5]} 76. Ka1 {[%clk 0:00:17.7]} 76... Kd8 {[%clk
0:00:19.4]} 77. Kb2 {[%clk 0:00:18.6]} 77... Kc8 {[%clk 0:00:20.3]} 78. Ka1
{[%clk 0:00:19.5]} 78... Kb8 {[%clk 0:00:21.2]} 79. Kb2 {[%clk 0:00:20.4]} 79...
Ka7 {[%clk 0:00:22.1]} 80. Ka1 {[%clk 0:00:21.3]} 80... Ka6 {[%clk 0:00:23]} 81.
Kb2 {[%clk 0:00:22]} 81... Ka5 {[%clk 0:00:23.9]} 82. Ka1 {[%clk 0:00:22.8]}
82... Kb4 {[%clk 0:00:24.8]} 83. Kb2 {[%clk 0:00:23.5]} 83... Kc4 {[%clk
0:00:25.7]} 84. Ka1 {[%clk 0:00:24.3]} 84... Kd3 {[%clk 0:00:26.6]} 85. Kb2
{[%clk 0:00:25]} 85... Kd2 {[%clk 0:00:27.5]} 86. Ka1 {[%clk 0:00:25.8]} 86...
Kd3 {[%clk 0:00:28.4]} 87. Kb2 {[%clk 0:00:26.6]} 87... Ke3 {[%clk 0:00:29.3]}
88. Ka1 {[%clk 0:00:27.4]} 88... Kf4 {[%clk 0:00:30.2]} 89. Kb2 {[%clk
0:00:28.3]} 89... Ke5 {[%clk 0:00:31.1]} 90. Ka1 {[%clk 0:00:29.1]} 90... Kd4
{[%clk 0:00:32]} 91. Kb2 {[%clk 0:00:30]} 91... Kc5 {[%clk 0:00:32.9]} 92. Ka1
{[%clk 0:00:30.9]} 92... Kb5 {[%clk 0:00:33.8]} 93. Kb2 {[%clk 0:00:31.8]} 93...
Ka4 {[%clk 0:00:34.7]} 94. Ka1 {[%clk 0:00:32.7]} 94... Kb4 {[%clk 0:00:35.6]}
95. Kb2 {[%clk 0:00:33.5]} 95... Kc4 {[%clk 0:00:36.5]} 96. Ka1 {[%clk
0:00:34.4]} 96... Kd4 {[%clk 0:00:33.1]} 97. Kb2 {[%clk 0:00:35.3]} 97... Ke5
{[%clk 0:00:34]} 98. Ka1 {[%clk 0:00:35.9]} 98... Kf4 {[%clk 0:00:34.9]} 1/2-1/2

[Event "Late-Titled-Tuesday-Blitz-July-09-2024"]
[Site "Chess.com"]
[Date "2024.07.09"]
[Round "3"]
[White "karinachess1"]
[Black "IndianSchoolOfSuffering"]
[Result "1-0"]
[WhiteElo "2666"]
[BlackElo "2436"]
[TimeControl "180+1"]
[EndTime "14:30:25 PDT"]
[Termination "karinachess1 won by resignation"]

1. d4 {[%clk 0:03:00.9]} 1... Nf6 {[%clk 0:02:58.5]} 2. c4 {[%clk 0:03:00.8]}
2... e6 {[%clk 0:02:57.3]} 3. Nc3 {[%clk 0:02:59.7]} 3... Bb4 {[%clk 0:02:53.1]}
4. e3 {[%clk 0:02:59.4]} 4... O-O {[%clk 0:02:51.6]} 5. Bd3 {[%clk 0:02:58.8]}
5... d5 {[%clk 0:02:48.4]} 6. cxd5 {[%clk 0:02:59.1]} 6... exd5 {[%clk
0:02:47.9]} 7. a3 {[%clk 0:02:58.6]} 7... Bd6 {[%clk 0:02:38.3]} 8. Nge2 {[%clk
0:02:59]} 8... Re8 {[%clk 0:02:36.8]} 9. Qc2 {[%clk 0:02:59.6]} 9... c5 {[%clk
0:02:32.4]} 10. Bd2 {[%clk 0:02:50.1]} 10... Nc6 {[%clk 0:02:27.4]} 11. dxc5
{[%clk 0:02:27.3]} 11... Bxc5 {[%clk 0:02:26.7]} 12. Nb5 {[%clk 0:02:27.6]}
12... Bb6 {[%clk 0:02:20.5]} 13. O-O {[%clk 0:02:28.2]} 13... a6 {[%clk
0:02:15.8]} 14. Nbd4 {[%clk 0:02:28.2]} 14... Nxd4 {[%clk 0:02:15.4]} 15. Nxd4
{[%clk 0:02:29.1]} 15... Ne4 {[%clk 0:02:02.4]} 16. Bc3 {[%clk 0:02:22.8]} 16...
Bd7 {[%clk 0:01:50.3]} 17. Qb3 {[%clk 0:02:12.9]} 17... Rc8 {[%clk 0:01:42.4]}
18. Rad1 {[%clk 0:02:09.2]} 18... Nxc3 {[%clk 0:01:38.6]} 19. bxc3 {[%clk
0:02:10.1]} 19... Be6 {[%clk 0:01:33.9]} 20. Nf3 {[%clk 0:02:00.3]} 20... Qc7
{[%clk 0:01:27]} 21. Rb1 {[%clk 0:01:49.4]} 21... Ba5 {[%clk 0:01:10.6]} 22.
Qxb7 {[%clk 0:01:42.1]} 22... Qxb7 {[%clk 0:01:05]} 23. Rxb7 {[%clk 0:01:43]}
23... Rxc3 {[%clk 0:01:03.7]} 24. Bxa6 {[%clk 0:01:42.8]} 24... Rxa3 {[%clk
0:01:03.1]} 25. Bb5 {[%clk 0:01:42.2]} 25... Rb3 {[%clk 0:00:43.3]} 26. Nd4
{[%clk 0:01:40.9]} 26... Rb2 {[%clk 0:00:39.2]} 27. Ra7 {[%clk 0:01:10.2]} 27...
Bb6 {[%clk 0:00:37.1]} 28. Ra6 {[%clk 0:01:10.8]} 28... Bxd4 {[%clk 0:00:36.7]}
29. Bxe8 {[%clk 0:01:10.7]} 29... Bf6 {[%clk 0:00:34.6]} 30. Ra8 {[%clk
0:01:10.3]} 30... Kf8 {[%clk 0:00:32.2]} 31. Bd7+ {[%clk 0:00:59.9]} 31... Ke7
{[%clk 0:00:32.2]} 32. Bxe6 {[%clk 0:01:00.6]} 32... fxe6 {[%clk 0:00:30.4]} 33.
Ra7+ {[%clk 0:01:00.1]} 33... Kd6 {[%clk 0:00:30.5]} 34. Ra6+ {[%clk 0:00:59.6]}
34... Ke5 {[%clk 0:00:30.5]} 35. g4 {[%clk 0:00:55.8]} 35... Ke4 {[%clk
0:00:26.1]} 36. Rxe6+ {[%clk 0:00:46.6]} 36... Kf3 {[%clk 0:00:25.9]} 37. Rd6
{[%clk 0:00:46.2]} 37... Bh4 {[%clk 0:00:23]} 38. Rxd5 {[%clk 0:00:43.5]} 38...
Bxf2+ {[%clk 0:00:22.7]} 39. Kh1 {[%clk 0:00:43.8]} 39... Kxe3 {[%clk
0:00:22.6]} 40. Rf5 {[%clk 0:00:39.4]} 40... Bh4 {[%clk 0:00:20.1]} 41. R5f3+
{[%clk 0:00:37.7]} 41... Ke4 {[%clk 0:00:20.2]} 42. Rf7 {[%clk 0:00:34.1]} 42...
Bf6 {[%clk 0:00:19.4]} 43. h3 {[%clk 0:00:25]} 43... h6 {[%clk 0:00:17.8]} 44.
Rf8 {[%clk 0:00:18.9]} 44... Rb3 {[%clk 0:00:17.3]} 45. Kg2 {[%clk 0:00:17.8]}
45... Rb2+ {[%clk 0:00:17.5]} 46. Rf2 {[%clk 0:00:17.4]} 46... Rb3 {[%clk
0:00:18.1]} 47. Re8+ {[%clk 0:00:16.7]} 47... Kd5 {[%clk 0:00:16.8]} 48. Rf5+
{[%clk 0:00:16.8]} 48... Kd6 {[%clk 0:00:16.6]} 49. Rf3 {[%clk 0:00:16]} 49...
Rb2+ {[%clk 0:00:16]} 50. Rf2 {[%clk 0:00:16.5]} 50... Rb3 {[%clk 0:00:15.4]}
51. Rfe2 {[%clk 0:00:16.8]} 51... Kd7 {[%clk 0:00:13.4]} 52. R8e3 {[%clk
0:00:16.7]} 52... Rb4 {[%clk 0:00:13.2]} 53. Rd3+ {[%clk 0:00:17]} 53... Kc6
{[%clk 0:00:12.7]} 54. Rc2+ {[%clk 0:00:17.6]} 54... Kb5 {[%clk 0:00:12.9]} 55.
Rd5+ {[%clk 0:00:17.3]} 55... Ka4 {[%clk 0:00:12.5]} 56. Rdc5 {[%clk 0:00:16.7]}
56... Kb3 {[%clk 0:00:12.2]} 57. Rc8 {[%clk 0:00:15.8]} 57... Rd4 {[%clk
0:00:09.1]} 58. Re2 {[%clk 0:00:16]} 58... Rd3 {[%clk 0:00:09]} 59. Re6 {[%clk
0:00:14.7]} 59... Bc3 {[%clk 0:00:07.3]} 60. Rb6+ {[%clk 0:00:14.1]} 60... Kc2
{[%clk 0:00:07.4]} 61. Rbc6 {[%clk 0:00:14]} 61... Rd2+ {[%clk 0:00:07.1]} 62.
Kf3 {[%clk 0:00:13.9]} 62... Rd3+ {[%clk 0:00:08]} 63. Kg2 {[%clk 0:00:13.9]}
63... Kd2 {[%clk 0:00:08.4]} 64. h4 {[%clk 0:00:13.2]} 64... Rd4 {[%clk
0:00:08.1]} 65. Kf3 {[%clk 0:00:12.9]} 65... Rd3+ {[%clk 0:00:08.1]} 66. Kf4
{[%clk 0:00:13.3]} 66... Bf6 {[%clk 0:00:06.4]} 67. g5 {[%clk 0:00:12.9]} 67...
hxg5+ {[%clk 0:00:05.6]} 68. hxg5 {[%clk 0:00:13.8]} 68... Rd4+ {[%clk
0:00:06.1]} 69. Kf3 {[%clk 0:00:06.3]} 69... Bxg5 {[%clk 0:00:06.2]} 70. Rc2+
{[%clk 0:00:05.7]} 70... Kd1 {[%clk 0:00:06.3]} 71. Rg2 {[%clk 0:00:05.5]} 71...
Bd2 {[%clk 0:00:06.2]} 72. Ra8 {[%clk 0:00:05.1]} 72... Rf4+ {[%clk 0:00:05.5]}
73. Kg3 {[%clk 0:00:05]} 73... Rc4 {[%clk 0:00:05.2]} 74. Ra1+ {[%clk
0:00:04.9]} 74... Bc1 {[%clk 0:00:05.3]} 75. Rg1+ {[%clk 0:00:04.4]} 75... Kd2
{[%clk 0:00:05.1]} 76. Kf3 {[%clk 0:00:04.8]} 76... Rc3+ {[%clk 0:00:05.2]} 77.
Ke4 {[%clk 0:00:04.7]} 77... Re3+ {[%clk 0:00:05.1]} 78. Kd5 {[%clk 0:00:04.8]}
78... Rd3+ {[%clk 0:00:05.3]} 79. Ke6 {[%clk 0:00:05]} 79... Re3+ {[%clk
0:00:05.2]} 80. Kf7 {[%clk 0:00:05.5]} 80... Rc3 {[%clk 0:00:06.1]} 81. Ra2+
{[%clk 0:00:04.8]} 81... Rc2 {[%clk 0:00:05.5]} 82. Rg2+ {[%clk 0:00:04.6]} 1-0

[Event "Late-Titled-Tuesday-Blitz-July-09-2024"]
[Site "Chess.com"]
[Date "2024.07.09"]
[Round "4"]
[White "JunjiCol"]
[Black "praveenb2002"]
[Result "0-1"]
[WhiteElo "2434"]
[BlackElo "2843"]
[TimeControl "180+1"]
[EndTime "14:34:45 PDT"]
[Termination "praveenb2002 won by resignation"]

1. e4 {[%clk 0:03:00.9]} 1... c6 {[%clk 0:02:57.9]} 2. d4 {[%clk 0:02:59.5]}
2... d5 {[%clk 0:02:57.9]} 3. e5 {[%clk 0:02:59.6]} 3... Bf5 {[%clk 0:02:56.6]}
4. h4 {[%clk 0:02:59.2]} 4... h5 {[%clk 0:02:54.9]} 5. Bg5 {[%clk 0:02:58.9]}
5... Qb6 {[%clk 0:02:49.6]} 6. Bd3 {[%clk 0:02:58.3]} 6... Qxd4 {[%clk
0:02:48.1]} 7. Nf3 {[%clk 0:02:57.8]} 7... Qg4 {[%clk 0:02:48.5]} 8. Bxf5 {[%clk
0:02:57.9]} 8... Qxf5 {[%clk 0:02:48.4]} 9. O-O {[%clk 0:02:58]} 9... Nd7 {[%clk
0:02:37.1]} 10. c4 {[%clk 0:02:56.8]} 10... e6 {[%clk 0:02:32.6]} 11. Nc3 {[%clk
0:02:53.3]} 11... dxc4 {[%clk 0:02:26.5]} 12. Nd4 {[%clk 0:02:44.9]} 12... Qd3
{[%clk 0:02:21.8]} 13. Re1 {[%clk 0:02:28.9]} 13... Qxd1 {[%clk 0:02:10.9]} 14.
Raxd1 {[%clk 0:02:29.8]} 14... Nh6 {[%clk 0:02:10.8]} 15. Ne4 {[%clk 0:02:27]}
15... Nxe5 {[%clk 0:02:04.9]} 16. Nf6+ {[%clk 0:02:25.8]} 16... gxf6 {[%clk
0:02:03.6]} 17. Bxf6 {[%clk 0:02:26.7]} 17... Ng6 {[%clk 0:01:51.2]} 18. g4
{[%clk 0:02:07.5]} 18... Nxg4 {[%clk 0:01:47.3]} 19. Nf5 {[%clk 0:02:06.9]}
19... Nxf6 {[%clk 0:01:44.8]} 0-1

[Event "Late-Titled-Tuesday-Blitz-July-09-2024"]
[Site "Chess.com"]
[Date "2024.07.09"]
[Round "4"]
[White "Keaton87"]
[Black "Millerkallpa"]
[Result "1-0"]
[WhiteElo "2653"]
[BlackElo "2256"]
[TimeControl "180+1"]
[EndTime "14:34:50 PDT"]
[Termination "Keaton87 won by resignation"]

1. d4 {[%clk 0:03:00.9]} 1... Nf6 {[%clk 0:02:59.6]} 2. Nf3 {[%clk 0:03:01.1]}
2... c5 {[%clk 0:02:59.7]} 3. c3 {[%clk 0:03:00.7]} 3... d5 {[%clk 0:02:58.2]}
4. Bf4 {[%clk 0:03:00.3]} 4... Nc6 {[%clk 0:02:57.2]} 5. e3 {[%clk 0:03:00.5]}
5... Qb6 {[%clk 0:02:56.7]} 6. Qb3 {[%clk 0:03:00.2]} 6... c4 {[%clk 0:02:56.5]}
7. Qc2 {[%clk 0:02:59.3]} 7... Bf5 {[%clk 0:02:56]} 8. Qc1 {[%clk 0:02:59.4]}
8... e6 {[%clk 0:02:55.3]} 9. Nbd2 {[%clk 0:02:59.5]} 9... Be7 {[%clk
0:02:55.3]} 10. Be2 {[%clk 0:02:59.8]} 10... O-O {[%clk 0:02:54.9]} 11. Nh4
{[%clk 0:02:59.1]} 11... Rfe8 {[%clk 0:02:41]} 12. Nxf5 {[%clk 0:02:58.7]} 12...
exf5 {[%clk 0:02:41.9]} 13. O-O {[%clk 0:02:58.7]} 13... Rad8 {[%clk 0:02:40.1]}
14. b3 {[%clk 0:02:57.9]} 14... cxb3 {[%clk 0:02:35.7]} 15. axb3 {[%clk
0:02:57.6]} 15... Ne4 {[%clk 0:02:36]} 16. Nxe4 {[%clk 0:02:57.3]} 16... fxe4
{[%clk 0:02:32.5]} 17. c4 {[%clk 0:02:55.7]} 17... Qxb3 {[%clk 0:02:23.4]} 18.
Rb1 {[%clk 0:02:54.7]} 18... Qa4 {[%clk 0:02:18.4]} 19. Rxb7 {[%clk 0:02:52.3]}
19... dxc4 {[%clk 0:01:56.1]} 20. Bxc4 {[%clk 0:02:46.9]} 20... Nb4 {[%clk
0:01:29.2]} 21. Bb5 {[%clk 0:02:44.1]} 21... Qa2 {[%clk 0:01:24.2]} 22. Bxe8
{[%clk 0:02:42.7]} 22... Rxe8 {[%clk 0:01:17.8]} 23. Rxe7 {[%clk 0:02:42.8]} 1-0

[Event "Late-Titled-Tuesday-Blitz-July-09-2024"]
[Site "Chess.com"]
[Date "2024.07.09"]
[Round "4"]
[White "Michalczak"]
[Black "AlexTruskavetsky"]
[Result "0-1"]
[WhiteElo "2514"]
[BlackElo "2691"]
[TimeControl "180+1"]
[EndTime "14:35:40 PDT"]
[Termination "AlexTruskavetsky won by resignation"]

1. e4 {[%clk 0:03:00.9]} 1... c5 {[%clk 0:02:58.8]} 2. c3 {[%clk 0:03:00.4]}
2... Nf6 {[%clk 0:02:58]} 3. e5 {[%clk 0:03:00.7]} 3... Nd5 {[%clk 0:02:56.9]}
4. Nf3 {[%clk 0:03:00.7]} 4... Nc6 {[%clk 0:02:56]} 5. d4 {[%clk 0:03:00.7]}
5... cxd4 {[%clk 0:02:55.5]} 6. Bc4 {[%clk 0:03:00.5]} 6... Nb6 {[%clk
0:02:54.9]} 7. Bb3 {[%clk 0:03:00.7]} 7... d6 {[%clk 0:02:52.1]} 8. exd6 {[%clk
0:03:00.8]} 8... Qxd6 {[%clk 0:02:51.6]} 9. O-O {[%clk 0:03:00.8]} 9... g6
{[%clk 0:02:51]} 10. Ng5 {[%clk 0:02:57.9]} 10... e6 {[%clk 0:02:41.1]} 11. Ne4
{[%clk 0:02:57.1]} 11... Qd8 {[%clk 0:02:36.5]} 12. Qf3 {[%clk 0:02:54.5]} 12...
Be7 {[%clk 0:02:15]} 13. Bh6 {[%clk 0:02:49.4]} 13... f5 {[%clk 0:02:00.9]} 14.
Ng3 {[%clk 0:02:41.6]} 14... Bg5 {[%clk 0:01:48.9]} 15. Bxg5 {[%clk 0:02:34]}
15... Qxg5 {[%clk 0:01:48.8]} 16. Re1 {[%clk 0:02:34.5]} 16... O-O {[%clk
0:01:46.9]} 17. Na3 {[%clk 0:02:29.4]} 17... dxc3 {[%clk 0:01:21.7]} 18. Qxc3
{[%clk 0:02:20.4]} 18... Qf6 {[%clk 0:01:20.9]} 19. Qe3 {[%clk 0:02:02.7]} 19...
f4 {[%clk 0:01:19.1]} 0-1